Cogmind - Beta 16.1 @@@ ROGUE MODE // 2026.02.22 @ 07:29:17 Player: spider Result: Destroyed by H-77 Assassin with Coil Gun Performance ------------- Evolutions (6) 3000 Regions Visited (22) 4400 Robots Destroyed (223) 1115 Value Destroyed (9060) 9060 Prototype IDs (41) 820 Alien Tech Used (1) 200 Bonus (4369) 4369 TOTAL SCORE: 22964 Bonus ------- High Alert Combat Kills 1161 Follower Combat Kills 2384 Network Hubs Disabled 400 Met Data Miner 300 Built Enhanced Grunts 300 A7 Reached Mainframe 300 Met R17 at Cetus 500 Friendly Fire -976 Cogmind --------- Core Integrity 0/1150 Matter 192/300 Energy 100/100 System Corruption 20% Temperature Cool (2) Movement Flying (35) Location -4/Upper Caves Parts ------- > --- POWER (2) -------- (None) > --- PROPULSION (6) --- Gyrokinetic Inverter Improved Gyrokinetic Inverter VTOL Module > --- UTILITY (9) ------ Advanced Signal Interpreter > --- WEAPON (3) ------- Backup Laser I > --- INVENTORY (5) ---- Thunder Leg Advanced Energy Well (500) Graphene Brace Experimental EM Shield Neutron Cannon Peak State ------------ > --- POWER ------------ Quantum Reactor Quantum Reactor > --- PROPULSION ------- Centrium Heavy Treads Centrium Heavy Treads Centrium Heavy Treads > --- UTILITY ---------- Experimental Cooling System Huge Storage Unit Experimental Signal Interpreter Seismic Detector Experimental Core Analyzer Damper Plating > --- WEAPON ----------- Heavy Plasma Cannon Neutron Cannon Advanced KE Penetrator > --- INVENTORY -------- Antimatter Reactor Centrium Heavy Treads Advanced Heat Sink Advanced Energy Well High-capacity Matter Pod Improved Terrain Scanner Experimental Terrain Scan Processor Transmission Jammer Jamming Amplifier Experimental Phase Shifter Improved Medium Armor Plating Improved Medium Armor Plating Improved Medium Armor Plating Centrium Medium Armor Plating Graphene Brace Experimental EM Shield Hacking Suite Experimental Hacking Suite EMDS Cooled Particle Cannon Advanced KE Penetrator [Rating: 159] Favorites ----------- Power Antimatter Reactor Engine Light Ion Engine Power Core Micro Nuclear Core Reactor Antimatter Reactor Propulsion Light Treads Treads Light Treads Leg Tripod Weapons Platform Wheel Wheel Hover Unit Gyrokinetic Inverter Flight Unit VTOL Module Utility Huge Storage Unit Device Experimental Cooling System Storage Huge Storage Unit Processor Experimental Signal Interpreter Hackware Experimental Hacking Suite Protection Light Armor Plating Weapon Plasma Cannon Energy Gun Phase Gun Energy Cannon Plasma Cannon Ballistic Gun Enhanced Autogun Launcher Rocket Launcher Special Weapon Mining Laser Impact Weapon Powered Hammer Piercing Weapon CR-A16's Pointy Stick Special Melee Weapon Improved Datajack Build | -11 -10 -10 -8 -7 -7 -7 -7 -6 -6 -6 -6 -6 -6 -6 -5 -5 -5 -5 -5 -5 -4 -4 ------- Run | Yrd Mat Sub Mat Fac Low Low Zio Pro Fac Was Fac Low Low Dat Pro Fac Ext Cet Arc Hub Fac Upp Slots Evolved 12 | . . . 4 2 . . . . 2 . . . . . . 2 . . . . 2 . Power . | . . . . . . . . . . . . . . . . . . . . . . . Propulsion 4 | . . . 2 1 . . . . . . . . . . . . . . . . 1 . Utility 7 | . . . 1 1 . . . . 2 . . . . . . 2 . . . . 1 . Weapon 1 | . . . 1 . . . . . . . . . . . . . . . . . . . Parts Attached 179 | 7 10 11 13 19 3 . 9 3 5 4 14 5 3 7 3 9 15 9 . 6 24 . Power 14 | 2 . 1 . 1 . . . . . 2 . . . 1 . . 2 2 . . 3 . Engine 4 | 2 . 1 . . . . . . . . . . . 1 . . . . . . . . Core 2 | . . . . 1 . . . . . . . . . . . . 1 . . . . . Reactor 8 | . . . . . . . . . . 2 . . . . . . 1 2 . . 3 . Propulsion 55 | 2 . 3 5 6 1 . 1 . 1 . 6 . 1 1 1 5 7 3 . 1 11 . Treads 26 | 2 . 3 5 5 1 . . . . . . . 1 . . . 3 3 . 1 2 . Leg 12 | . . . . 1 . . 1 . 1 . 1 . . 1 . . 2 . . . 5 . Wheel 12 | . . . . . . . . . . . 5 . . . . 5 2 . . . . . Hover 4 | . . . . . . . . . . . . . . . 1 . . . . . 3 . Flight 1 | . . . . . . . . . . . . . . . . . . . . . 1 . Utility 63 | 1 6 2 3 6 1 . 5 3 3 2 4 3 2 3 1 4 4 1 . 4 5 . Device 23 | . 2 . . 1 . . 4 2 1 . . 1 . 1 1 4 1 . . 2 3 . Storage 7 | 1 2 . . 2 . . . . . . 1 . 1 . . . . . . . . . Processor 4 | . . . . . . . 1 . . 1 1 . . . . . . . . . 1 . Hackware 1 | . . . . . . . . . . . . . . . . . . . . . 1 . Protection 28 | . 2 2 3 3 1 . . 1 2 1 2 2 1 2 . . 3 1 . 2 . . Artifact . | . . . . . . . . . . . . . . . . . . . . . . . Weapon 47 | 2 4 5 5 6 1 . 3 . 1 . 4 2 . 2 1 . 2 3 . 1 5 . Energy Gun 9 | . 1 . 1 1 . . 2 . 1 . . . . . . . 1 1 . . 1 . Energy Cannon 12 | . . . . . . . . . . . 3 1 . 2 1 . 1 1 . 1 2 . Ballistic Gun 18 | 2 2 4 4 2 1 . . . . . . . . . . . . 1 . . 2 . Ballistic Cannon . | . . . . . . . . . . . . . . . . . . . . . . . Launcher 3 | . . . . 1 . . . . . . 1 1 . . . . . . . . . . Special Weapon 1 | . 1 . . . . . . . . . . . . . . . . . . . . . Impact Weapon 1 | . . . . 1 . . . . . . . . . . . . . . . . . . Slashing Weapon . | . . . . . . . . . . . . . . . . . . . . . . . Piercing Weapon 2 | . . 1 . . . . 1 . . . . . . . . . . . . . . . Special Melee Weapon 1 | . . . . 1 . . . . . . . . . . . . . . . . . . Unidentified Prototypes 15 | . . . 2 . . . . . . 1 . 1 1 3 . . . 4 . 2 1 . Corrupted Parts 8 | . . . . 1 . . 6 . . . . . . . . . . . . . 1 . System Corruption 50 | . . . . 8 . . 33 . . . . . . . . . . . . . 9 . Parts Lost 87 | . 1 8 2 5 . 1 . . 1 . 8 3 2 2 4 5 8 1 . 2 33 1 Power 10 | . . 2 . . . . . . . . . . . . 1 . 1 . . . 5 1 Propulsion 31 | . . 2 1 2 . . . . . . 4 1 2 . 1 3 3 1 . 1 10 . Utility 29 | . 1 3 1 1 . 1 . . 1 . 2 2 . 1 1 2 2 . . . 11 . Weapon 17 | . . 1 . 2 . . . . . . 2 . . 1 1 . 2 . . 1 7 . Highest Loss Streak 23 | . 1 1 2 2 . 1 . . 1 . 4 2 2 1 4 4 4 1 . 1 23 1 To Critical Strikes 2 | . . . . . . . . . . . . . . . . . 1 . . 1 . . Average Backups 21 | 4 17 23 22 21 19 20 22 24 23 23 21 21 21 20 21 21 21 20 20 20 15 5 Power . | . 1 . . . 1 1 1 1 1 1 1 1 1 . 2 2 1 1 1 1 . . Propulsion 2 | 1 3 3 3 3 2 2 2 2 1 1 . . . . . 2 3 2 2 2 2 1 Utility 11 | . 5 6 6 9 10 11 15 16 16 15 14 12 13 14 15 13 13 14 14 14 10 3 Weapon 6 | . 6 11 11 7 5 5 3 5 5 5 4 7 6 4 3 3 3 3 3 3 2 1 Tool/Special . | . . . . . . . . . . . . . . . . . . . . . . . Unused Backups 49 | . 2 . 13 9 . . 3 . . 5 3 1 1 1 . . 3 2 . 1 4 1 Power 5 | . . . . . . . 1 . . 2 2 . . . . . . . . . . . Propulsion 7 | . 2 . . . . . . . . 2 . . . . . . 1 1 . . 1 . Utility 14 | . . . 2 1 . . 2 . . . 1 1 . 1 . . 1 . . 1 3 1 Weapon 22 | . . . 10 8 . . . . . 1 . . 1 . . . 1 1 . . . . Tool/Special 1 | . . . 1 . . . . . . . . . . . . . . . . . . . Average Slot Usage (%) 86 | . 98 99 95 85 66 64 60 72 72 78 92 96 89 82 95 85 98 92 88 84 56 30 Engine 4 | . 14 13 9 3 . . . . . . . . . 4 6 5 . . . . . 5 Core 1 | . . . . 3 6 6 6 6 5 1 . . . . . . 4 . . . . . Reactor 2 | . . . . . . . . . . 3 5 6 6 6 3 . 4 9 11 11 6 . Treads 15 | . 28 27 32 32 13 13 6 6 4 . 4 6 4 6 6 1 8 18 16 15 9 . Leg 4 | . . . . 1 6 6 12 13 11 17 7 1 6 6 12 11 2 . . . 4 . Wheel 4 | . . . . . . . . . . . 12 23 16 12 9 10 15 1 . . . . Device 7 | . 3 1 6 4 5 4 5 15 16 15 9 4 5 6 6 9 16 16 16 13 7 . Storage 7 | . 14 14 9 7 6 6 6 6 5 5 5 6 6 6 6 5 5 5 5 5 3 . Processor 5 | . . . . . . . . . . 1 10 12 12 12 12 11 11 11 11 11 7 5 Protection 9 | . 8 12 11 9 6 6 6 3 8 11 9 13 12 9 11 12 10 11 11 10 4 . Energy Gun 2 | . . . . . . . 11 13 8 7 9 6 6 . . . 4 . . . . 5 Energy Cannon 5 | . . . . . . . . . . . 4 11 11 10 18 16 11 12 11 10 7 . Ballistic Gun 11 | . 27 27 26 19 18 19 . 1 8 11 7 . . . . . . 3 5 4 2 . Peak Build Rating 159 | 6 9 15 29 77 79 77 95 95 103 109 114 77 81 89 86 89 100 141 141 151 159 25 Average Rating 64 | 5 8 12 24 46 77 76 88 83 89 98 86 70 74 73 83 84 95 124 138 138 107 24 On Entrance 73 | . 6 9 13 28 77 77 76 95 83 94 109 75 76 77 88 83 89 98 141 138 141 25 Avg Prop Armor Cover (%) 10 | . . . . 10 9 10 9 12 7 . 8 7 9 9 8 6 8 14 . . 38 4 Naked Turns 33 | . . . . . . . . . . . . . . . . . . . . . 33 . Heaviest Build 196 | 12 92 96 108 121 81 79 125 125 129 135 139 134 141 151 149 136 151 160 160 193 196 2 Greatest Support 240 | 40 40 40 80 100 90 90 90 110 125 125 125 40 30 28 48 48 73 187 187 187 240 4 Greatest Overweight (x) 12 | . 2 2 2 1 . . 1 1 1 1 12 4 7 7 7 8 5 4 . 1 1 . Average Overweight (x) 1 | . 1 2 1 . . . . . . . 2 3 4 5 5 2 3 . . . . . Largest Inventory Capacity 25 | 8 25 25 25 25 25 20 25 25 25 25 25 25 25 25 25 25 25 25 25 25 25 5 Average Capacity 24 | 7 22 25 25 23 20 20 24 25 25 25 25 25 25 25 25 25 25 25 25 25 18 5 Most Carried 25 | 7 25 25 25 25 20 20 25 25 25 25 25 25 25 25 25 25 25 25 25 25 25 5 Average Carried 22 | 4 18 23 23 23 19 20 22 24 24 24 24 24 24 23 24 24 24 24 25 24 16 5 Final Capacity 25 | 8 25 25 25 20 20 20 25 25 25 25 25 25 25 25 25 25 25 25 25 25 5 5 Final Carried 25 | 7 24 23 25 19 20 20 25 25 25 25 25 22 24 25 24 25 25 25 25 25 5 5 Class Distribution -------------------- 52% | Scavenger-Tank 23% | Mutant 11% | Scavenger-Mutant 4% | Scavenger-Gunner 3% | Commander-Tank Dominant Class ---------------- Mutant | -10/Materials Mutant | -10/Subcaves Scavenger-Tank | -8/Materials Scavenger-Tank | -7/Factory Scavenger-Tank | -7/Lower Caves Scavenger-Tank | -7/Lower Caves Scavenger-Mutant | -7/Zion Scavenger-Gunner | -6/Proximity Caves Scavenger-Gunner | -6/Factory Scavenger-Tank | -6/Waste Scavenger-Tank | -6/Factory Scavenger-Tank | -6/Lower Caves Scavenger-Tank | -6/Lower Caves Scavenger-Mutant | -6/Data Miner Scavenger-Tank | -5/Proximity Caves Scavenger-Tank | -5/Factory Scavenger-Tank | -5/Extension Scavenger-Tank | -5/Cetus Commander-Tank | -5/Archives Scavenger-Tank | -5/Hub_04(d) Scavenger-Tank | -4/Factory Mutant | -4/Upper Caves Resources | -11 -10 -10 -8 -7 -7 -7 -7 -6 -6 -6 -6 -6 -6 -6 -5 -5 -5 -5 -5 -5 -4 -4 ----------- Run | Yrd Mat Sub Mat Fac Low Low Zio Pro Fac Was Fac Low Low Dat Pro Fac Ext Cet Arc Hub Fac Upp Matter Collected 7002 | 334 308 732 479 563 451 255 150 . 451 225 419 700 312 229 129 90 240 163 66 120 586 . Remotely . | . . . . . . . . . . . . . . . . . . . . . . . Salvage Created 9400 | 177 506 557 583 813 70 96 . . 344 . 730 250 428 362 110 754 1032 191 204 1157 1036 . Parts 456 | 13 36 36 35 50 6 6 . . 16 . 48 7 7 13 4 32 40 5 10 50 42 . Haulers Intercepted 4 | . 1 . 2 1 . . . . . . . . . . . . . . . . . . Recyclers Shooed 7 | . 2 . 1 1 . . . . 1 . 1 . . . . 1 . . . . . . Parts Field Recycled . | . . . . . . . . . . . . . . . . . . . . . . . Retrieved Matter . | . . . . . . . . . . . . . . . . . . . . . . . Parts Self-Destructed 73 | . . 17 . . 10 7 . . . . . 21 12 . 6 . . . . . . . Prevented 12 | . . . . . . 2 . . . . . 5 3 . 2 . . . . . . . Parts Restored . | . . . . . . . . . . . . . . . . . . . . . . . Kills | -11 -10 -10 -8 -7 -7 -7 -7 -6 -6 -6 -6 -6 -6 -6 -5 -5 -5 -5 -5 -5 -4 -4 ------- Run | Yrd Mat Sub Mat Fac Low Low Zio Pro Fac Was Fac Low Low Dat Pro Fac Ext Cet Arc Hub Fac Upp Combat Hostiles Destroyed 168 | . 12 17 8 19 4 6 . . 7 . 14 8 8 4 4 7 17 2 1 13 17 . Guns 77 | . 12 17 8 13 1 2 . . 7 . 7 1 . . . . 4 . . 2 3 . Cannons 38 | . . . . . . . . . . . . . 2 2 3 6 12 1 1 6 5 . AOE 39 | . . . . 6 3 4 . . . . 7 7 6 . . . . . . . 6 . Classes Destroyed 18 | 3 4 2 1 3 . 1 . . . . 2 1 . . . . . . 1 . . . Worker 18 | 2 2 . . 2 . . . . . . 5 . . . . 1 . . . 4 2 . Builder 2 | . . . . . . . . . . . 1 . . . . . . . . . 1 . Tunneler 10 | 3 . . . . . . . . 3 . . . . . . 2 . . . 1 1 . Hauler 4 | . 1 . 2 1 . . . . . . . . . . . . . . . . . . Recycler 8 | 1 1 . 1 . . . . . . . 1 . . . . 2 1 . . . 1 . Operator 2 | . . . . . . . . . . . . . . . . . . . 2 . . . Watcher 5 | . 1 . 1 1 . . . . . . . . . . . . . 2 . . . . Swarmer 48 | . 6 3 . 6 3 5 . . 4 . 6 3 . . . . 7 . . . 5 . Grunt 52 | . 6 2 3 3 . . . . 1 . 2 4 7 . 3 3 5 . . 5 8 . Brawler 3 | . . . . 1 . . . . 1 . . 1 . . . . . . . . . . Duelist 7 | . . . . . . 1 . . 1 . 1 . 1 . 1 1 . . . 1 . . Sentry 17 | . . 1 4 3 . . . . . . . . . . . . 5 . 1 3 . . Hunter 6 | . . . . 2 . . . . . . 1 . . . . . . . . 1 2 . Programmer 14 | . . . . 4 1 . . . . . 3 . . . . 3 . . . 1 2 . Heavy 1 | . . . 1 . . . . . . . . . . . . . . . . . . . Behemoth 1 | . . . . . . . . . . . 1 . . . . . . . . . . . Cetus Guard 2 | . . . . . . . . . . . . . . . . . . 2 . . . . Enhanced Grunt 5 | . . . . . . . . . . . . . 1 4 . . . . . . . . Lightning 2 | . . . . . . . . . . . . . . . . . . . . 2 . . Subdweller 11 | . . 11 . . . . . . . . . . . . . . . . . . . . Tinkerer 1 | . . . . . . . . . . . . 1 . . . . . . . . . . Thug 2 | . . . . . . . . . . . . . . . . . . . 1 1 . . Savage 1 | . . . . . . . . . . . . . 1 . . . . . . . . . Guerrilla 2 | . . . . . . . . . . . . . . . . . . . . 2 . . Best Kill Streak 7 | 6 5 3 4 4 3 4 . . 5 . 6 5 4 2 4 7 6 2 2 5 7 . Combat Bots Only 7 | . 3 3 4 3 3 4 . . 5 . 6 5 4 2 4 4 5 2 1 5 7 . Max Kills in Single Turn 5 | 1 2 1 2 3 2 1 . . 1 . 2 3 3 1 1 1 2 1 1 5 4 . Gunslinging 1 | . . . . 1 . . . . . . . . . . . . . . . . . . Exploded 4 | . . . . 3 2 1 . . . . 2 3 3 . . . . . . . 4 . Melee . | . . . . . . . . . . . . . . . . . . . . . . . Uniques/NPCs Destroyed . | . . . . . . . . . . . . . . . . . . . . . . . Combat | -11 -10 -10 -8 -7 -7 -7 -7 -6 -6 -6 -6 -6 -6 -6 -5 -5 -5 -5 -5 -5 -4 -4 -------- Run | Yrd Mat Sub Mat Fac Low Low Zio Pro Fac Was Fac Low Low Dat Pro Fac Ext Cet Arc Hub Fac Upp Hostile Shots Fired 1657 | . 62 93 41 305 18 44 . . 37 . 115 51 29 25 31 53 55 21 7 201 465 4 Missed 489 | . 24 16 10 107 7 16 . . 4 . 43 23 6 5 9 10 8 5 4 57 133 2 Hits 1168 | . 38 77 31 198 11 28 . . 33 . 72 28 23 20 22 43 47 16 3 144 332 2 Melee 23 | . . . . 1 . . . . 5 . . 3 5 . 2 3 . . . 4 . . Projectile 1145 | . 38 77 31 197 11 28 . . 28 . 72 25 18 20 20 40 47 16 3 140 332 2 AOE 1 | . . . . 1 . . . . . . . . . . . . . . . . . . Critical Strikes 58 | . . 3 1 8 . . . . 1 . 4 4 1 . 1 6 3 . . 11 15 . Actively Blocked 1 | . . . . . . . . . 1 . . . . . . . . . . . . . Part Disruptions 1 | . . . . . . . . . . . . . . . . . . . . . 1 . Damage Taken 21768 | . 386 1326 759 2604 160 439 . . 664 . 1573 629 547 947 477 892 959 294 76 2257 6746 33 Core 2565 | . 65 137 142 140 31 17 . . 18 . 79 156 18 227 57 95 86 . 27 101 1148 21 Absorbed by Shields 253 | . . . . . . . . . . . . . . . . . 136 117 . . . . Redirected to Shielding 101 | . . . . . . . . . 101 . . . . . . . . . . . . . Ignored by Resistances 861 | . . . . . . . . . . . 8 16 . . . . . . . 837 . . Core Remaining (%) 61 | 100 . 19 74 . . . . 73 . . . . . . 34 . . . . 69 . . Volleys Fired 623 | 32 53 61 22 53 6 11 . 1 21 . 48 27 22 45 14 27 51 17 14 46 52 . Largest 5 | 2 2 2 3 3 3 3 . 1 3 . 5 3 3 3 3 3 3 3 3 3 3 . Hottest 310 | 40 100 60 78 130 78 78 . 33 257 . 310 248 198 190 200 190 262 283 205 215 285 . Shots Fired 1363 | 64 106 124 67 145 10 17 . 1 63 . 119 37 36 83 24 73 118 39 42 99 96 . Gun 785 | 64 104 124 67 140 6 10 . . 63 . 99 3 7 . . . 22 7 14 26 29 . Cannon 535 | . . . . . . . . . . . 15 26 21 83 21 73 96 32 28 73 67 . Launcher 41 | . . . . 5 4 7 . 1 . . 5 8 8 . 3 . . . . . . . Special 2 | . 2 . . . . . . . . . . . . . . . . . . . . . Kinetic 670 | 64 104 124 67 137 6 10 . . 40 . 50 . . . . . . 7 14 26 21 . Thermal 632 | . 2 . . 3 . . . . 23 . 64 29 28 83 21 73 118 32 28 58 70 . Explosive 41 | . . . . 5 4 7 . 1 . . 5 8 8 . 3 . . . . . . . Electromagnetic 20 | . . . . . . . . . . . . . . . . . . . . 15 5 . Robot Hit Streak 21 | 6 11 9 13 21 3 3 . . 14 . 20 3 11 11 12 13 16 8 4 8 11 . Robot Miss Streak 7 | 3 4 4 4 4 4 6 . . 2 . 4 2 1 2 1 2 2 1 4 7 4 . Penetration Max 1 | . . . . . . . . . 1 . 1 . . . . . . 1 . 1 1 . Secondary Targets 12 | . 1 2 2 3 . . . . 3 . 1 . . . . . . . . . . . Max Gunslinging Chain 1 | . 1 1 1 1 . . . . 1 . 1 . . . . . . . . . . . Shots Hit Robots 769 | 41 60 76 46 95 3 4 . . 49 . 57 6 15 49 12 44 71 22 22 44 53 . Core Hits 417 | 12 28 27 22 44 5 7 . . 20 . 37 19 17 22 8 22 38 5 12 34 38 . Critical Kills 8 | . . . . . . . . . . . . . . . 1 . 1 . 1 2 3 . Critical Parts Destroyed 2 | . . . . . . . . . . . . . . . . . . 1 . . 1 . Critical Strikes 23 | . . . . . . . . . 3 . . . 1 . 1 . 5 1 1 6 5 . Burn 7 | . . . . . . . . . 2 . . . 1 . . . 4 . . . . . Meltdown 7 | . . . . . . . . . . . . . . . 1 . 1 . 1 2 2 . Destroy 4 | . . . . . . . . . 1 . . . . . . . . 1 . . 2 . Corrupt 5 | . . . . . . . . . . . . . . . . . . . . 4 1 . Melee Attacks 23 | . . 5 2 5 3 . 1 7 . . . . . . . . . . . . . . Impact 6 | . . . . 2 3 . 1 . . . . . . . . . . . . . . . Slashing . | . . . . . . . . . . . . . . . . . . . . . . . Piercing 14 | . . 5 2 . . . . 7 . . . . . . . . . . . . . . Sneak Attacks 3 | . . . . 3 . . . . . . . . . . . . . . . . . . Combat Hostiles . | . . . . . . . . . . . . . . . . . . . . . . . Follow-up Attacks . | . . . . . . . . . . . . . . . . . . . . . . . Damage Inflicted 24316 | 362 663 1543 849 1858 337 463 . . 1182 . 2184 949 1420 893 695 1301 2163 713 731 2419 3591 . Guns 9224 | 362 629 1543 829 1414 68 70 . . 1155 . 1346 79 120 . . . 345 153 211 368 532 . Cannons 8465 | . . . . . . . . . . . 60 26 208 893 288 1301 1818 560 520 1288 1503 . Explosions 6440 | . . . . 415 269 393 . . . . 775 844 1092 . 407 . . . . 700 1545 . Melee . | . . . . . . . . . . . . . . . . . . . . . . . Ramming 187 | . 34 . 20 29 . . . . 27 . 3 . . . . . . . . 63 11 . Kinetic 7445 | 362 629 1543 829 1377 68 70 . . 736 . 567 . . . . . . 153 211 368 532 . Thermal 11221 | . . . . 37 . . . . 419 . 976 105 328 893 288 1301 2163 560 520 797 2834 . Explosive 4058 | . . . . 415 269 393 . . . . 638 844 1092 . 407 . . . . . . . Electromagnetic 1405 | . . . . . . . . . . . . . . . . . . . . 1191 214 . Impact . | . . . . . . . . . . . . . . . . . . . . . . . Slashing . | . . . . . . . . . . . . . . . . . . . . . . . Piercing . | . . . . . . . . . . . . . . . . . . . . . . . Highest Corruption 20 | . 3 3 2 14 14 14 14 . . . 2 2 2 2 2 1 . . . 1 20 20 Average Corruption 4 | . 2 3 2 5 14 14 9 . . . 1 2 2 2 2 1 . . . 1 16 20 Corruption Purged 1 | . . . . . . . . . . . . . . . . 1 . . . . . . Corruption Blocked . | . . . . . . . . . . . . . . . . . . . . . . . Effects 265 | . 31 49 12 24 27 18 2 . . . 13 16 25 13 11 1 . . . 4 17 2 Message Errors 53 | . 5 11 1 2 6 4 . . . . 1 4 6 4 3 . . . . . 6 . Matter Fused 70 | . 11 15 . 10 8 5 . . . . 2 2 7 3 2 . . . . 1 4 . Heat Flow Errors 41 | . 4 8 4 1 6 1 1 . . . 3 3 5 2 2 . . . . . 1 . Energy Discharges 31 | . 3 7 1 2 2 5 1 . . . . 3 1 1 1 1 . . . 2 1 . Parts Rejected 6 | . . . . 1 . . . . . . 1 . . . . . . . . . 3 1 Parts Fused 3 | . 1 . 1 . . . . . . . . . 1 . . . . . . . . . Data Loss (minor) 27 | . 3 4 2 . 3 1 . . . . 3 3 3 2 3 . . . . . . . Data Loss (major) 8 | . 2 1 1 2 1 . . . . . . 1 . . . . . . . . . . Misfires 10 | . 2 3 2 . . . . . . . 1 . 2 . . . . . . . . . Alerts 7 | . . . . 3 1 . . . . . 1 . . 1 . . . . . 1 . . Misdirections 2 | . . . . 1 . . . . . . . . . . . . . . . . . 1 Weapon Failures 7 | . . . . 2 . 2 . . . . 1 . . . . . . . . . 2 . Overload Shots 2 | . . . . . . . . . . . . . . 1 . 1 . . . . . . Overflow Damage 855 | . . . . 36 11 . . . . . 90 71 45 . 19 14 2 43 6 23 495 . Projectiles 85 | . . . . . . . . . . . . . . . 19 14 2 43 6 1 . . Explosions 770 | . . . . 36 11 . . . . . 90 71 45 . . . . . . 22 495 . Melee . | . . . . . . . . . . . . . . . . . . . . . . . Knockbacks . | . . . . . . . . . . . . . . . . . . . . . . . Impact . | . . . . . . . . . . . . . . . . . . . . . . . Kinetic . | . . . . . . . . . . . . . . . . . . . . . . . Secondary . | . . . . . . . . . . . . . . . . . . . . . . . Self-Inflicted Damage 695 | . . . . . . . . . . . 209 . 22 . 27 . . . . 10 427 . Shots 12 | . . . . . . . . . . . 3 . 1 . 2 . . . . 1 5 . Rammed 17 | . 6 . 3 1 . . . . . . . . . . . . . . . 6 1 . Targets Rammed 27 | . 8 . 4 3 . . . . 1 . 2 . . . . . . . . 7 2 . Kicked 6 | . . . . 2 . . . . 1 . 2 . . . . . . . . . 1 . Crushed 4 | . 2 . 1 . . . . . . . . . . . . . . . . 1 . . Highest Temperature 531 | . 268 202 336 214 251 191 181 . 364 . 288 337 342 197 219 309 126 162 84 407 531 . Average Temperature 94 | . 39 90 88 52 106 78 97 . 122 . 97 112 107 57 110 107 43 72 36 125 156 . Received Heat Transfer 3589 | . 126 195 180 408 . 18 . . 99 . 93 189 147 . 180 342 182 . . 469 961 . Effects 10 | . . 1 1 . . . . . . . 1 . 2 . 1 . . . . 2 2 . Shutdowns 2 | . . . . . . . . . . . . . . . . . . . . 1 1 . Energy Bleed 1 | . . . . . . . . . . . . . . . 1 . . . . . . . Interference 5 | . . 1 . . . . . . . . 1 . 2 . . . . . . 1 . . Short Circuit 2 | . . . 1 . . . . . . . . . . . . . . . . . 1 . Siege Activations . | . . . . . . . . . . . . . . . . . . . . . . . Martial Activations . | . . . . . . . . . . . . . . . . . . . . . . . Shielding Activations . | . . . . . . . . . . . . . . . . . . . . . . . Robots Disrupted . | . . . . . . . . . . . . . . . . . . . . . . . Combat Hostiles . | . . . . . . . . . . . . . . . . . . . . . . . Robots Corrupted 5 | . . . . . . . . . . . . . . . . . . . . 3 2 . Combat Hostiles 5 | . . . . . . . . . . . . . . . . . . . . 3 2 . Parts Fried 12 | . . . . . . . . . . . . . . . . . . . . 11 1 . Impact Corruptions . | . . . . . . . . . . . . . . . . . . . . . . . Robots Melted 11 | . . . . . . . . . . . . . . 2 1 1 1 1 1 2 2 . Combat Hostiles 9 | . . . . . . . . . . . . . . 2 1 1 1 1 . 2 1 . Parts Melted 51 | . . 1 . 1 . . . . 1 . 2 2 3 12 . 7 7 3 2 5 5 . Heat Transferred 16327 | . . . . 75 . . . . 740 . 1260 161 620 2255 361 2155 3754 861 850 1300 1935 . Parts Sabotaged . | . . . . . . . . . . . . . . . . . . . . . . . Parts Stolen . | . . . . . . . . . . . . . . . . . . . . . . . Parts Stripped . | . . . . . . . . . . . . . . . . . . . . . . . Power Chain Reactions . | . . . . . . . . . . . . . . . . . . . . . . . Alert | -11 -10 -10 -8 -7 -7 -7 -7 -6 -6 -6 -6 -6 -6 -6 -5 -5 -5 -5 -5 -5 -4 -4 ------- Run | Yrd Mat Sub Mat Fac Low Low Zio Pro Fac Was Fac Low Low Dat Pro Fac Ext Cet Arc Hub Fac Upp Maximum Alert Level 4 | . . . . 1 . . . . 1 . 3 . . . . . 3 2 1 4 3 . Low Security (%) 63 | 100 100 . 100 77 . . . . 7 100 55 . . . . 100 63 . 2 16 . . Level 1 13 | . . . . 22 . . . . 92 . 15 . . . . . 12 . 97 10 . . Level 2 14 | . . . . . . . . . . . 28 . . . . . 12 100 . 41 45 . Level 3 5 | . . . . . . . . . . . 1 . . . . . 11 . . 4 54 . Level 4 2 | . . . . . . . . . . . . . . . . . . . . 26 . . Level 5 . | . . . . . . . . . . . . . . . . . . . . . . . High Security . | . . . . . . . . . . . . . . . . . . . . . . . Max Security . | . . . . . . . . . . . . . . . . . . . . . . . Peak Influence 1372 | 15 131 . 110 292 . . . . 325 75 769 . . . . 109 938 691 391 1372 943 . Initial 666 | . . . 31 32 . . . . 300 75 . . . . . . 45 513 240 69 666 . Average 221 | 2 36 . 27 98 . . . . 247 16 262 . . . . 48 229 605 298 618 714 . Influence Increases 9628 | 30 402 160 300 674 100 205 . . 505 . 1309 509 261 . 90 262 1352 396 237 1905 931 . Destroy 0b10 Robot/C 4140 | . 240 120 160 380 80 120 . . 140 . 520 320 200 . 80 140 560 160 80 500 340 . Destroy 0b10 Robot/NC 310 | 30 25 . 20 20 . . . . 15 . 65 . . . . 25 20 10 10 45 25 . Destroy Leader 744 | . 54 10 76 114 20 10 . . 20 . 134 10 30 . 10 30 62 . . 114 50 . Allied During Kill 1705 | . . . . . . . . . . . 249 179 31 . . . 517 170 90 469 . . Successful Hack 219 | . 21 . 42 . . . . . . . 2 . . . . 7 65 . . 14 68 . Disable Machine 840 | . . . . 45 . . . . . . 210 . . . . 30 90 30 45 255 135 . Anti-Garrison Action 150 | . . . . . . . . . . . . . . . . . . . . 150 . . Destroy Structure 770 | . 2 . 2 25 . . . . . . 99 . . . . 30 38 26 12 328 208 . Advance Influence 300 | . . . . . . . . . 300 . . . . . . . . . . . . . Lose Combat Pursuer 450 | . 60 30 . 90 . 75 . . 30 . 30 . . . . . . . . 30 105 . Influence Decreases 9066 | 30 402 98 291 480 365 102 103 . 290 215 540 779 673 87 90 169 527 713 639 744 1366 363 Entered New Map 2860 | . . . 31 39 99 . 103 . . 140 . 285 95 87 . . 48 405 361 130 694 343 Time Decay 4859 | 30 392 88 260 391 266 92 . . 180 75 310 464 498 . 90 139 382 238 238 374 342 10 Search Patrol Dispatched 100 | . . . . . . . . . 100 . . . . . . . . . . . . . Lost Part 671 | . 10 10 . 50 . 10 . . 10 . 80 30 20 . . 30 51 10 . 20 330 10 Lost Ally 426 | . . . . . . . . . . . . . 60 . . . 46 60 40 220 . . Purge Threat 150 | . . . . . . . . . . . 150 . . . . . . . . . . . Squads Dispatched 39 | . 2 . 7 9 . 1 . . 1 . 4 . . . . 2 2 . . 6 5 . Investigation 3 | . . . 1 . . . . . . . . . . . . 1 1 . . . . . Extermination 10 | . . . . 4 . . . . . . 2 . . . . 1 . . . 1 2 . Reinforcement 13 | . 2 . 3 2 . . . . . . 1 . . . . . 1 . . 2 2 . Assault 5 | . . . . . . 1 . . . . 1 . . . . . . . . 2 1 . Garrison 8 | . . . 3 3 . . . . 1 . . . . . . . . . . 1 . . Intercept . | . . . . . . . . . . . . . . . . . . . . . . . Searches Triggered 1 | . . . . . . . . . 1 . . . . . . . . . . . . . Construction Impeded 3 | . . . . . . . . . . . 1 . . . . . . . . 1 1 . Haulers Reinforced . | . . . . . . . . . . . . . . . . . . . . . . . Active Scanning Responses . | . . . . . . . . . . . . . . . . . . . . . . . Cargo Convoy Interrupts 1 | . . . . 1 . . . . . . . . . . . . . . . . . . Stealth | -11 -10 -10 -8 -7 -7 -7 -7 -6 -6 -6 -6 -6 -6 -6 -5 -5 -5 -5 -5 -5 -4 -4 --------- Run | Yrd Mat Sub Mat Fac Low Low Zio Pro Fac Was Fac Low Low Dat Pro Fac Ext Cet Arc Hub Fac Upp Distress Signals 12 | . 3 . 1 . . . . . . . 3 . . . . . . 2 . 1 2 . Communications Jammed 298 | . . . . . . . . . . . 32 . . . . . 147 . . 1 118 . Distress Signals 298 | . . . . . . . . . . . 32 . . . . . 147 . . 1 118 . Times Spotted 308 | . 25 18 11 41 4 12 . . 11 . 36 11 9 4 4 7 32 11 8 23 36 5 Peak Tracking Total 12 | . 5 5 4 12 3 7 . . 5 . 9 9 4 2 4 4 5 5 2 7 9 4 Tactical Retreats 19 | . 3 1 . 3 . 2 . . 1 . 2 . . . . . . . . 2 5 . Traps | -11 -10 -10 -8 -7 -7 -7 -7 -6 -6 -6 -6 -6 -6 -6 -5 -5 -5 -5 -5 -5 -4 -4 ------- Run | Yrd Mat Sub Mat Fac Low Low Zio Pro Fac Was Fac Low Low Dat Pro Fac Ext Cet Arc Hub Fac Upp Traps Triggered 10 | . 2 . 1 2 . . . . 1 . . . . . . . 3 . . . 1 . Indirectly . | . . . . . . . . . . . . . . . . . . . . . . . Trap Hack Attempts . | . . . . . . . . . . . . . . . . . . . . . . . Triggered . | . . . . . . . . . . . . . . . . . . . . . . . Disarmed . | . . . . . . . . . . . . . . . . . . . . . . . Reprogrammed . | . . . . . . . . . . . . . . . . . . . . . . . Reused . | . . . . . . . . . . . . . . . . . . . . . . . Traps Extracted . | . . . . . . . . . . . . . . . . . . . . . . . Installed . | . . . . . . . . . . . . . . . . . . . . . . . Triggered . | . . . . . . . . . . . . . . . . . . . . . . . Machines | -11 -10 -10 -8 -7 -7 -7 -7 -6 -6 -6 -6 -6 -6 -6 -5 -5 -5 -5 -5 -5 -4 -4 ---------- Run | Yrd Mat Sub Mat Fac Low Low Zio Pro Fac Was Fac Low Low Dat Pro Fac Ext Cet Arc Hub Fac Upp Machines Disabled 59 | . . . . 3 . . . . . . 14 1 . 1 . 2 6 2 3 18 9 . Max in Single Turn 7 | . . . . 2 . . . . . . 5 1 . 1 . 1 1 1 1 7 3 . Garrison Access 2 | . . . . . . . . . 1 . . . . . . . . . . 1 . . Network Hub 2 | . . . . . . . . . . . . . . . . . . . . 2 . . Machines Repaired . | . . . . . . . . . . . . . . . . . . . . . . . Machines Dismantled . | . . . . . . . . . . . . . . . . . . . . . . . Machines Sabotaged . | . . . . . . . . . . . . . . . . . . . . . . . Overloaded Fab Kills . | . . . . . . . . . . . . . . . . . . . . . . . Hacking | -11 -10 -10 -8 -7 -7 -7 -7 -6 -6 -6 -6 -6 -6 -6 -5 -5 -5 -5 -5 -5 -4 -4 --------- Run | Yrd Mat Sub Mat Fac Low Low Zio Pro Fac Was Fac Low Low Dat Pro Fac Ext Cet Arc Hub Fac Upp Machines Accessed 56 | . 5 . 10 2 . . . . 2 . 9 . . 3 . 4 13 . . 4 4 . Terminals 38 | . 3 . 7 1 . . . . 1 . 6 . . . . 2 13 . . 3 2 . Fabricators 1 | . . . . . . . . . . . . . . . . 1 . . . . . . Repair Stations 3 | . . . . . . . . . . . 1 . . . . 1 . . . . 1 . Recycling Units 5 | . 2 . 2 . . . . . . . 1 . . . . . . . . . . . Scanalyzers 3 | . . . 1 . . . . . . . 1 . . . . . . . . . 1 . Garrison Access 3 | . . . . 1 . . . . 1 . . . . . . . . . . 1 . . Total Hacks 148 | . 13 . 27 6 . . . . 4 . 19 . . 23 . 7 26 . . 7 16 . Successful 71 | . 6 . 12 2 . . . . 1 . 9 . . 23 . 1 11 . . 1 5 . Failed 76 | . 7 . 14 4 . . . . 3 . 10 . . . . 6 15 . . 6 11 . Catastrophic 19 | . 1 . 3 1 . . . . 1 . 2 . . . . 3 4 . . 2 2 . Database Lockouts 1 | . . . 1 . . . . . . . . . . . . . . . . . . . Manual 67 | . 10 . 21 3 . . . . 2 . 9 . . . . . 14 1 . . 7 . Terminals 93 | . 10 . 21 3 . . . . 2 . 12 . . . . 5 26 . . 6 8 . Fabricators 1 | . . . . . . . . . . . . . . . . 1 . . . . . . Repair Stations 7 | . . . . . . . . . . . 3 . . . . 1 . . . . 3 . Recycling Units 9 | . 3 . 4 . . . . . . . 2 . . . . . . . . . . . Scanalyzers 9 | . . . 2 . . . . . . . 2 . . . . . . . . . 5 . Garrison Access 6 | . . . . 3 . . . . 2 . . . . . . . . . . 1 . . Terminal Hacks 40 | . 2 . 2 1 . . . . . . 4 . . 23 . 1 5 . . 1 1 . Record 6 | . . . . . . . . . . . . . . 6 . . . . . . . . Part Schematic 10 | . . . . . . . . . . . . . . 10 . . . . . . . . Robot Schematic 4 | . . . . . . . . . . . . . . 4 . . . . . . . . Robot Analysis 1 | . 1 . . . . . . . . . . . . . . . . . . . . . Prototype ID Bank 3 | . . . . . . . . . . . . . . 3 . . . . . . . . Open Door 5 | . . . . . . . . . . . . . . . . . 5 . . . . . Branch Access Points 5 | . . . 1 1 . . . . . . 1 . . . . 1 . . . . 1 . Unreport Threat 1 | . . . . . . . . . . . 1 . . . . . . . . . . . Maintenance Status 1 | . . . . . . . . . . . 1 . . . . . . . . . . . Zone Layout 4 | . 1 . 1 . . . . . . . 1 . . . . . . . . 1 . . Fabricator Hacks . | . . . . . . . . . . . . . . . . . . . . . . . Repair Station Hacks 2 | . . . . . . . . . . . 1 . . . . . . . . . 1 . Scan Component 1 | . . . . . . . . . . . 1 . . . . . . . . . . . Refit 1 | . . . . . . . . . . . . . . . . . . . . . 1 . Recycling Unit Hacks 3 | . 1 . 1 . . . . . . . 1 . . . . . . . . . . . Retrieve Components 3 | . 1 . 1 . . . . . . . 1 . . . . . . . . . . . Scanalyzer 4 | . . . 1 . . . . . . . 2 . . . . . . . . . 1 . Insert Component 2 | . . . . . . . . . . . 2 . . . . . . . . . . . Retrieve Study 2 | . . . 1 . . . . . . . . . . . . . . . . . 1 . Garrison Access Hacks 1 | . . . . . . . . . 1 . . . . . . . . . . . . . Seal Access 1 | . . . . . . . . . 1 . . . . . . . . . . . . . Unauthorized Hacks 21 | . 3 . 8 1 . . . . . . 1 . . . . . 6 . . . 2 . Terminals 21 | . 3 . 8 1 . . . . . . 1 . . . . . 6 . . . 2 . Botnet 8 | . 1 . 2 1 . . . . . . 1 . . . . . 2 . . . 1 . Disrupt 1 | . 1 . . . . . . . . . . . . . . . . . . . . . Operators 1 | . . . 1 . . . . . . . . . . . . . . . . . . . Skim 11 | . 1 . 5 . . . . . . . . . . . . . 4 . . . 1 . Fabricators . | . . . . . . . . . . . . . . . . . . . . . . . Repair Stations . | . . . . . . . . . . . . . . . . . . . . . . . Recycling Units . | . . . . . . . . . . . . . . . . . . . . . . . Scanalyzers . | . . . . . . . . . . . . . . . . . . . . . . . Garrison Access . | . . . . . . . . . . . . . . . . . . . . . . . Data Cores Recovered . | . . . . . . . . . . . . . . . . . . . . . . . Used . | . . . . . . . . . . . . . . . . . . . . . . . Hacking Detections 46 | . 4 . 9 2 . . . . 2 . 8 . . . . 4 10 1 . 3 3 . Full Trace Events 1 | . . . . . . . . . . . . . . . . 1 . . . . . . Feedback Events . | . . . . . . . . . . . . . . . . . . . . . . . Feedback Blocked . | . . . . . . . . . . . . . . . . . . . . . . . Robot Schematics Acquired 7 | . . . . . . . 3 . . . . . . 4 . . . . . . . . Robots Built . | . . . . . . . . . . . . . . . . . . . . . . . Authchips . | . . . . . . . . . . . . . . . . . . . . . . . Time . | . . . . . . . . . . . . . . . . . . . . . . . Total Robot Build Rating . | . . . . . . . . . . . . . . . . . . . . . . . Part Schematics Acquired 23 | . . . . . . . 13 . . . . . . 10 . . . . . . . . Parts Built . | . . . . . . . . . . . . . . . . . . . . . . . Authchips . | . . . . . . . . . . . . . . . . . . . . . . . Time . | . . . . . . . . . . . . . . . . . . . . . . . Total Part Build Rating . | . . . . . . . . . . . . . . . . . . . . . . . Part Studies Acquired 2 | . . . 1 . . . . . . . . . . . . . . . . . 1 . Parts Repaired . | . . . . . . . . . . . . . . . . . . . . . . . Time . | . . . . . . . . . . . . . . . . . . . . . . . Parts Recycled . | . . . . . . . . . . . . . . . . . . . . . . . Recycled Matter . | . . . . . . . . . . . . . . . . . . . . . . . Retrieved Matter . | . . . . . . . . . . . . . . . . . . . . . . . Retrieved Components 16 | . 7 . 9 . . . . . . . . . . . . . . . . . . . Parts Scanalyzed . | . . . . . . . . . . . . . . . . . . . . . . . Part Schematics Acquired . | . . . . . . . . . . . . . . . . . . . . . . . Parts Damaged . | . . . . . . . . . . . . . . . . . . . . . . . Bothacking | -11 -10 -10 -8 -7 -7 -7 -7 -6 -6 -6 -6 -6 -6 -6 -5 -5 -5 -5 -5 -5 -4 -4 ------------ Run | Yrd Mat Sub Mat Fac Low Low Zio Pro Fac Was Fac Low Low Dat Pro Fac Ext Cet Arc Hub Fac Upp Used RIF Installer . | . . . . . . . . . . . . . . . . . . . . . . . Robots Hacked 2 | . . . . 2 . . . . . . . . . . . . . . . . . . Non-combat 1 | . . . . 1 . . . . . . . . . . . . . . . . . . Combat 1 | . . . . 1 . . . . . . . . . . . . . . . . . . Robot Hacks Applied 2 | . . . . 2 . . . . . . . . . . . . . . . . . . parse_system 1 | . . . . 1 . . . . . . . . . . . . . . . . . . find_fabricator 1 | . . . . 1 . . . . . . . . . . . . . . . . . . Relay Couplers Released 4 | . . . . . . . . . . . . . . . . . . . . 4 . . Programmers 4 | . . . . . . . . . . . . . . . . . . . . 4 . . Fabnet Peak Effective % . | . . . . . . . . . . . . . . . . . . . . . . . Robots Rewired 12 | . . . . . . . . . . . . 2 . . . . 10 . . . . . Allies Hacked . | . . . . . . . . . . . . . . . . . . . . . . . Hacks Repelled . | . . . . . . . . . . . . . . . . . . . . . . . Allies | -11 -10 -10 -8 -7 -7 -7 -7 -6 -6 -6 -6 -6 -6 -6 -5 -5 -5 -5 -5 -5 -4 -4 -------- Run | Yrd Mat Sub Mat Fac Low Low Zio Pro Fac Was Fac Low Low Dat Pro Fac Ext Cet Arc Hub Fac Upp Total Allies 33 | . . . . . . . . . . . 2 2 . . . . 24 5 . . . . Largest Group 20 | . . . . . . . . . . . 2 4 4 . . . 18 20 19 15 . . Highest-Rated Group 1016 | . . . . . . . . . . . 192 236 236 . . . 662 1016 1016 795 . . Highest-Rated Ally 159 | . . . . . . . . . . . 96 96 96 . . . 159 137 137 96 . . Total Orders 8 | . . . . . . . . . . . . . . . . . . 3 2 3 . . STAY 6 | . . . . . . . . . . . . . . . . . . 2 1 3 . . FOLLOW 2 | . . . . . . . . . . . . . . . . . . 1 1 . . . Ally Attacks 353 | . . . . . . . . . . . 41 26 8 . . . 111 53 23 91 . . Total Damage 9229 | . . . . . . . . . . . 2461 527 146 . . . 2234 843 498 2520 . . Kills 70 | . . . . . . . . . . . 18 8 2 . . . 16 7 3 16 . . Allies Corrupted 4 | . . . . . . . . . . . . . . . . . . . . 4 . . Allies Melted 1 | . . . . . . . . . . . . . . . . . . . . 1 . . Intel | -11 -10 -10 -8 -7 -7 -7 -7 -6 -6 -6 -6 -6 -6 -6 -5 -5 -5 -5 -5 -5 -4 -4 ------- Run | Yrd Mat Sub Mat Fac Low Low Zio Pro Fac Was Fac Low Low Dat Pro Fac Ext Cet Arc Hub Fac Upp Active Infowar (turns) 10714 | . 431 427 1248 381 703 333 1 548 125 383 609 760 1198 . 683 117 597 503 513 632 522 . Sensors 4318 | . . . . . . . . 548 125 383 607 760 1198 . 681 . . . . . 16 . Terrain 11 | . . . . . . . . . . . . . . . . 11 . . . . . . Seismic 4157 | . 431 427 1248 381 703 333 . . . . . . . . . 106 27 . . 163 338 . Decoding 1 | . . . . . . . 1 . . . . . . . . . . . . . . . Jamming 2934 | . . . . . . . . 230 86 . 218 . . . . . 570 503 513 631 183 . ECM 3 | . . . . . . . . . . . . . . . 2 . . . . . 1 . Robot Analysis Total 1 | . 1 . . . . . . . . . . . . . . . . . . . . . Derelict Logs Recovered 14 | . . 2 . . 1 2 1 . . . . 2 3 . 3 . . . . . . . Drone Launches . | . . . . . . . . . . . . . . . . . . . . . . . Drone Recoveries . | . . . . . . . . . . . . . . . . . . . . . . . Exploration | -11 -10 -10 -8 -7 -7 -7 -7 -6 -6 -6 -6 -6 -6 -6 -5 -5 -5 -5 -5 -5 -4 -4 ------------- Run | Yrd Mat Sub Mat Fac Low Low Zio Pro Fac Was Fac Low Low Dat Pro Fac Ext Cet Arc Hub Fac Upp Turns Passed 22603 | 217 1546 3228 1887 1455 723 479 1723 563 364 386 1053 1173 1331 872 1086 362 1471 503 513 865 775 28 Spaces Moved 11132 | 76 440 886 772 656 728 503 1219 352 230 290 562 706 773 293 502 144 713 178 77 390 567 75 Core 296 | 3 . . . . . . . . . . . . . . . . . . . . 293 . Treads 3423 | 73 440 886 772 424 . . . . . . . . 2 11 . . 1 149 77 390 198 . Legs 3975 | . . . . 232 728 503 1219 352 230 290 226 . . 2 145 43 . . . . 5 . Wheels 3292 | . . . . . . . . . . . 336 706 771 280 357 101 712 29 . . . . Hover 45 | . . . . . . . . . . . . . . . . . . . . . 45 . Flight 101 | . . . . . . . . . . . . . . . . . . . . . 26 75 Fastest Speed 35 | 50 160 320 200 90 90 90 90 115 115 116 110 125 140 155 185 130 130 160 163 160 35 35 Average Speed 164 | 155 264 335 226 164 90 90 137 149 119 123 140 129 147 177 206 176 145 164 163 167 93 35 Slowest Speed 560 | 160 320 340 320 220 90 90 150 150 180 182 490 140 400 470 260 260 560 245 163 243 240 35 Overloaded Moves . | . . . . . . . . . . . . . . . . . . . . . . . Propulsion Burnouts . | . . . . . . . . . . . . . . . . . . . . . . . Robots Hopped 2 | . . . . . . . . . . . . . . . . . . . . . 2 . Potential Cave-ins . | . . . . . . . . . . . . . . . . . . . . . . . Cave-ins Triggered . | . . . . . . . . . . . . . . . . . . . . . . . Exploration Rate (%) 54 | 4 70 61 67 21 84 75 84 55 10 89 23 84 89 80 65 6 84 67 70 40 19 10 Regions Visited 22 Branch Regions 14 Pre-discovered Areas 7 | . . . 1 . . 1 1 . . . . . 1 1 2 . . . . . . . Known Exits Taken 13 | . . . 1 1 . . . . . . 1 1 1 1 1 1 1 1 1 1 1 . Unknown Exits Taken 7 | 1 1 1 . . 1 1 1 1 . . . . . . . . . . . . . . Scrap Searched 25 | . . 4 . . 7 5 4 . . . . 1 2 . 2 . . . . . . . Spaces Dug 137 | . 2 1 1 17 21 6 . 18 . . 10 9 7 . 2 3 2 4 . 5 29 . Terrain Destroyed 739 | . 2 1 1 27 39 42 . 18 1 . 75 71 63 . 29 9 14 6 6 207 128 . Melee 14 | . . 1 1 2 3 . . 7 . . . . . . . . . . . . . . Projectile 146 | . 2 . . . . 1 . . 1 . 11 20 11 . 7 9 14 6 6 31 27 . AOE 579 | . . . . 25 36 41 . 11 . . 64 51 52 . 22 . . . . 176 101 . Terrain Rammed 1 | . . . . . . . . . . . . . . . . . . . . . 1 . Walls Destroyed . | . . . . . . . . . . . . . . . . . . . . . . . Machines Disabled . | . . . . . . . . . . . . . . . . . . . . . . . Actions | -11 -10 -10 -8 -7 -7 -7 -7 -6 -6 -6 -6 -6 -6 -6 -5 -5 -5 -5 -5 -5 -4 -4 --------- Run | Yrd Mat Sub Mat Fac Low Low Zio Pro Fac Was Fac Low Low Dat Pro Fac Ext Cet Arc Hub Fac Upp Total 14249 | 121 716 1016 880 938 781 515 1265 370 279 327 741 923 927 581 527 191 1049 358 433 519 716 76 Wait 1571 | . 178 36 8 144 26 . . . 6 . 74 146 102 204 . 1 101 132 342 47 24 . Move 11108 | 75 439 885 771 655 727 502 1218 351 230 289 561 705 772 292 501 143 712 177 76 389 563 75 Hop 1 | . . . . . . . . . . . . . . . . . . . . . 1 . Pick Up 187 | 7 18 7 30 18 5 . 14 1 3 14 10 3 5 14 . 3 14 4 . 3 14 . Fast Attach 91 | 5 3 2 3 3 . . 9 . 2 1 11 4 1 4 4 7 4 4 . 6 17 1 Attach 99 | 1 2 8 7 11 2 . 3 2 4 2 4 4 1 9 2 2 6 2 . 6 21 . Detach 22 | . 2 1 . 4 . . . . 3 . 1 . . . 1 . . 1 . 5 4 . Swap 169 | 1 8 7 7 17 8 2 5 7 7 4 19 18 21 1 3 6 13 8 1 2 4 . Drop 177 | . 5 4 26 23 4 . 15 1 2 17 11 5 3 12 2 2 11 13 . 8 13 . Fire 623 | 32 53 61 22 53 6 11 . 1 21 . 48 27 22 45 14 27 51 17 14 46 52 . Melee 23 | . . 5 2 5 3 . 1 7 . . . . . . . . . . . . . . Ram 2 | . . . . . . . . . . . . . . . . . . . . . 2 . Kick 6 | . . . . 2 . . . . 1 . 2 . . . . . . . . . 1 . Crush 20 | . 8 . 4 1 . . . . . . . . . . . . . . . 7 . . Escape Stasis 9 | . . . . 2 . . . . . . . . . . . . 7 . . . . . Rewire 141 | . . . . . . . . . . . . 11 . . . . 130 . . . . . Trap . | . . . . . . . . . . . . . . . . . . . . . . . Miscellaneous . | . . . . . . . . . . . . . . . . . . . . . . . Route ------- -11/Scrapyard -10/Materials (discovered 4 exits: [*Mat x2] / [*Min] / [*Sub]) -10/Subcaves -8/Materials (discovered 3 exits: *Fac x3) -7/Factory (discovered 2 exits: *Low x2) -7/Lower Caves -7/Lower Caves (discovered 2 exits: *Fac / [*Zio]) -7/Zion -6/Proximity Caves -6/Factory -6/Waste -6/Factory (discovered 2 exits: *Low x2) -6/Lower Caves -6/Lower Caves (discovered 2 exits: *Fac / *Dat) -6/Data Miner -5/Proximity Caves -5/Factory (discovered 5 exits: Fac / Upp x2 / *Ext x2) -5/Extension (discovered 2 exits: *Fac / *Cet) -5/Cetus (discovered 2 exits: *Fac / *Arc) -5/Archives (discovered 2 exits: *Fac / *Hub) -5/Hub_04(d) -4/Factory (discovered 2 exits: *Upp x2) -4/Upper Caves History --------- Turn | Location | Event 2 | -11/Scrapyard | Met Revision 17 36 | -11/Scrapyard | Discovered new exit (range 15) 218 | -11/Scrapyard | Entered Materials 270 | -10/Materials | Discovered new exit (range 4) 314 | -10/Materials | Build established: Mutant 684 | -10/Materials | Discovered new exit (range 6) 1093 | -10/Materials | Discovered new exit (range 6) 1712 | -10/Materials | Discovered new exit (range 7) 1764 | -10/Materials | Entered Subcaves 1765 | -10/Subcaves | Approached by a straggling Scientist 1800 | -10/Subcaves | Learned 4 Materials zone layouts 2462 | -10/Subcaves | Disturbed a concealed Subdweller 3011 | -10/Subcaves | Shifting Twisted Machinery released Sub. Optics 3317 | -10/Subcaves | Discovered new exit (range 13) 3770 | -10/Subcaves | Learned location of 1 exit from Materials 3788 | -10/Subcaves | A swath of the cavern ceiling suddenly collapsed 4529 | -10/Subcaves | Core integrity fell below 50% 4643 | -10/Subcaves | Core integrity fell below 20% 4992 | -10/Subcaves | Entered Materials 4992 | -8/Materials | Evolved 4 slots: Propulsion x2, Utility x1, Weapon x1 4993 | -8/Materials | Identified exit to Factory 5652 | -8/Materials | Build established: Scavenger-Tank 5658 | -8/Materials | Discovered exit to Factory (range 8) 5863 | -8/Materials | Central database locked down 6236 | -8/Materials | Garrison activated, responded to threat 6841 | -8/Materials | Met 7R-MNS 6879 | -8/Materials | Entered Factory 6879 | -7/Factory | Evolved 2 slots: Propulsion x1, Utility x1 6880 | -7/Factory | Caught up to 7R-MNS 7261 | -7/Factory | 7R-MNS lamented failing the tripod run 7283 | -7/Factory | Found Corrupted Tripod Weapons Platform 7316 | -7/Factory | Found Centrium Heavy Armor Plating 7320 | -7/Factory | Found Corrupted Multitargeting Array 7444 | -7/Factory | Garrison activated, responded to threat 7990 | -7/Factory | Cargo convoy interrupted 7995 | -7/Factory | System corruption reached 10% 7995 | -7/Factory | Attached Tripod Weapons Platform, gained temporary slots: Weapon x2 8074 | -7/Factory | Assembled infested ambush trap array 8089 | -7/Factory | Identified exit to Lower Caves 8334 | -7/Factory | Entered Lower Caves 8548 | -7/Lower Caves | Spotted B-75 Beast 8791 | -7/Lower Caves | Learned Factory emergency access door positions 9012 | -7/Lower Caves | Discovered new exit (range 9) 9057 | -7/Lower Caves | Entered another Lower Caves area 9129 | -7/Lower Caves | Discovered new exit (range 11) 9370 | -7/Lower Caves | Learned Factory emergency access door positions 9386 | -7/Lower Caves | Attracted the attention of an 0b10 outpost 9517 | -7/Lower Caves | Discovered new exit (range 11) 9536 | -7/Lower Caves | Entered Zion 9588 | -7/Zion | System corruption cleaned by Quarantine Array 9624 | -7/Zion | System corruption cleaned by Quarantine Array 9638 | -7/Zion | System corruption cleaned by Quarantine Array 9649 | -7/Zion | System corruption cleaned by Quarantine Array 9703 | -7/Zion | System corruption cleaned by Quarantine Array 9742 | -7/Zion | System corruption cleaned by Quarantine Array 9824 | -7/Zion | Build established: Scavenger-Mutant 9918 | -7/Zion | Discovered new exit (range 15) 10134 | -7/Zion | Learned Factory security intel 10140 | -7/Zion | Learned location of Warlord (-5) 10200 | -7/Zion | Found Prototype Processor 10205 | -7/Zion | Found Prototype Processor 10208 | -7/Zion | Found Prototype Hackware 10210 | -7/Zion | Found Prototype Processor 10213 | -7/Zion | Found Prototype Processor 10217 | -7/Zion | Found Prototype Processor 10930 | -7/Zion | Given A8's code to call for help 11034 | -7/Zion | Found CR-A16's Pointy Stick 11259 | -7/Zion | Entered Proximity Caves 11429 | -6/Proximity Caves | Spotter reported a threat 11463 | -6/Proximity Caves | Spotter reported a threat 11477 | -6/Proximity Caves | Build established: Scavenger-Gunner 11820 | -6/Proximity Caves | Discovered new exit (range 2) 11822 | -6/Proximity Caves | Entered Factory 11822 | -6/Factory | Evolved 2 slots: Utility x2 12088 | -6/Factory | Garrison activated, responded to threat 12172 | -6/Factory | Search patrols dispatched 12186 | -6/Factory | Sucked down chute 12186 | -6/Factory | Entered Waste 12186 | -6/Waste | The area was eerily silent 12320 | -6/Waste | Build established: Scavenger-Tank 12449 | -6/Waste | Discovered new exit (range 12) 12498 | -6/Waste | Identified Exp. Signal Interpreter 12503 | -6/Waste | Found Unknown Protection 12570 | -6/Waste | Identified exit to Factory 12572 | -6/Waste | Entered Factory 12645 | -6/Factory | Identified Exp. Melee Analysis Suite 12645 | -6/Factory | Identified Exp. Core Analyzer 12893 | -6/Factory | Spotted B-75 Beast 12917 | -6/Factory | Destroyed B-75 Beast 12946 | -6/Factory | Lost 4 parts (2n1u1w) 13097 | -6/Factory | Identified exit to Lower Caves 13100 | -6/Factory | Enhanced Grunt warped into view, answering call for help 13102 | -6/Factory | Enhanced Grunt warped into view, answering call for help 13622 | -6/Factory | First assault squad dispatched 13625 | -6/Factory | Entered Lower Caves 13625 | -6/Lower Caves | Accompanied by 2 allies 13963 | -6/Lower Caves | Identified Damper Plating 14021 | -6/Lower Caves | Identified Exp. Hacking Suite 14040 | -6/Lower Caves | Identified Exp. Terrain Scan Processor (x2) 14221 | -6/Lower Caves | Learned Factory terminal intel 14272 | -6/Lower Caves | Found Alien Artifact 14272 | -6/Lower Caves | Identified Core Expander 14272 | -6/Lower Caves | Installed Core Expander, added new Power slot 14461 | -6/Lower Caves | Attracted the attention of an 0b10 outpost 14769 | -6/Lower Caves | Discovered new exit (range 13) 14788 | -6/Lower Caves | Identified exit to Lower Caves 14798 | -6/Lower Caves | Entered another Lower Caves area 14798 | -6/Lower Caves | Accompanied by 4 allies 14831 | -6/Lower Caves | Discovered new exit (range 14) 15810 | -6/Lower Caves | Learned Factory emergency access door positions 16071 | -6/Lower Caves | Discovered new exit (range 13) 16114 | -6/Lower Caves | Identified exit to Data Miner 16122 | -6/Lower Caves | Learned location of 1 exit from Factory 16129 | -6/Lower Caves | Entered Data Miner 16131 | -6/Data Miner | Discovered new exit (range 6) 16160 | -6/Data Miner | Met Data Miner 16188 | -6/Data Miner | Learned location of Section 7 (-2) 16188 | -6/Data Miner | Acquired the access code to Warlord's prototype stash 16212 | -6/Data Miner | Received God Mode back door access code from Data Miner 16338 | -6/Data Miner | Identified exit to Proximity Caves 16423 | -6/Data Miner | Data Conduit disabled 16438 | -6/Data Miner | Build established: Scavenger-Mutant 16618 | -6/Data Miner | Core integrity fell below 50% 16643 | -6/Data Miner | Found Prototype Device 16643 | -6/Data Miner | Identified Exp. Thermal Shield 17001 | -6/Data Miner | Entered Proximity Caves 17022 | -5/Proximity Caves | Build established: Scavenger-Tank 17713 | -5/Proximity Caves | Lost 4 parts (1p1n1u1w) 17883 | -5/Proximity Caves | Learned Factory trap positions 17932 | -5/Proximity Caves | Spotted B-75 Beast 18061 | -5/Proximity Caves | Discovered new exit (range 9) 18082 | -5/Proximity Caves | Identified exit to Factory 18087 | -5/Proximity Caves | Entered Factory 18087 | -5/Factory | Evolved 2 slots: Utility x2 18088 | -5/Factory | Identified exit to Upper Caves 18089 | -5/Factory | Identified exit to Factory 18090 | -5/Factory | Loaded intel: 89 trap records 18092 | -5/Factory | Loaded intel: 28 terminal locations 18173 | -5/Factory | Identified exit to Extension 18271 | -5/Factory | Lost 4 parts (3n1u) 18449 | -5/Factory | Entered Extension 18735 | -5/Extension | Lost 4 parts (1n1u2w) 18829 | -5/Extension | Rescued a captive Derelict 18967 | -5/Extension | Rescued a captive Derelict 18971 | -5/Extension | Rescued a captive Derelict 19066 | -5/Extension | Rescued A7 19090 | -5/Extension | Rescued a captive Derelict 19156 | -5/Extension | Rescued a captive Derelict 19345 | -5/Extension | Spotted B-75 Beast 19352 | -5/Extension | Spotted B-75 Beast 19360 | -5/Extension | Allies destroyed B-75 Beast 19378 | -5/Extension | Allies destroyed B-75 Beast 19418 | -5/Extension | Lost 4 allies 19477 | -5/Extension | Rescued a captive Derelict 19477 | -5/Extension | Rescued a captive Derelict 19490 | -5/Extension | Rescued a captive Derelict 19491 | -5/Extension | Rescued a captive Derelict 19517 | -5/Extension | Rescued a captive Derelict 19518 | -5/Extension | Rescued a captive Derelict 19699 | -5/Extension | Rescued a captive Derelict 19700 | -5/Extension | Rescued a captive Derelict 19781 | -5/Extension | Rescued a captive Derelict 19836 | -5/Extension | Discovered exit to Factory (range 10) 19838 | -5/Extension | Discovered new exit (range 6) 19847 | -5/Extension | Identified exit to Cetus 19920 | -5/Extension | Entered Cetus 19920 | -5/Cetus | Accompanied by 18 allies (A7) 19925 | -5/Cetus | Acquired a Cetus Manufacturing Module code from A7 19964 | -5/Cetus | Spotted Cetus Guard 19964 | -5/Cetus | Spotted Cetus Guard 19967 | -5/Cetus | Spotted Cetus Guard 19969 | -5/Cetus | Destroyed Cetus Guard 19970 | -5/Cetus | Allies destroyed Cetus Guard 19971 | -5/Cetus | Spotted Cetus Guard 19975 | -5/Cetus | Destroyed Cetus Guard 19977 | -5/Cetus | Allies destroyed Cetus Guard 20079 | -5/Cetus | Started Cetus Manufacturing Module 20100 | -5/Cetus | Escorted A7 to Cetus Mainframe 20104 | -5/Cetus | Manufactured an Enhanced Grunt 20129 | -5/Cetus | Manufactured an Enhanced Grunt 20144 | -5/Cetus | Discovered new exit (range 15) 20154 | -5/Cetus | Manufactured an Enhanced Grunt 20171 | -5/Cetus | Spotted Cetus Guard 20171 | -5/Cetus | Spotted Cetus Guard 20175 | -5/Cetus | Spotted Cetus Guard 20179 | -5/Cetus | Manufactured an Enhanced Grunt 20186 | -5/Cetus | Spotted Cetus Guard 20188 | -5/Cetus | Allies destroyed Cetus Guard 20204 | -5/Cetus | Manufactured an Enhanced Grunt 20222 | -5/Cetus | Discovered exit to Factory (range 16) 20226 | -5/Cetus | Lost 3 allies 20233 | -5/Cetus | Met Revision 17 20345 | -5/Cetus | Identified exit to Archives 20423 | -5/Cetus | Entered Archives 20423 | -5/Archives | Accompanied by 19 allies (A7) 20428 | -5/Archives | Received a hacking code to weaken MAIN.C 20488 | -5/Archives | Lost 3 allies 20514 | -5/Archives | Build established: Commander-Tank 20519 | -5/Archives | Discovered exit to Factory (range 16) 20541 | -5/Archives | Discovered new exit (range 16) 20908 | -5/Archives | Identified exit to Hub_04(d) 20936 | -5/Archives | Entered Hub_04(d) 20936 | -5/Hub_04(d) | Accompanied by 15 allies 21104 | -5/Hub_04(d) | Lost 3 allies 21369 | -5/Hub_04(d) | Build established: Scavenger-Tank 21507 | -5/Hub_04(d) | Garrison activated, responded to threat 21570 | -5/Hub_04(d) | Network Hub disabled 21590 | -5/Hub_04(d) | Spotted Lightning 21595 | -5/Hub_04(d) | Spotted Lightning 21596 | -5/Hub_04(d) | Murdered 3 allies 21645 | -5/Hub_04(d) | Lost 7 allies 21647 | -5/Hub_04(d) | Destroyed Lightning 21658 | -5/Hub_04(d) | Destroyed Lightning 21666 | -5/Hub_04(d) | Found Prototype Device 21666 | -5/Hub_04(d) | Identified Exp. Phase Shifter 21678 | -5/Hub_04(d) | Found Prototype Energy Cannon 21680 | -5/Hub_04(d) | Identified EMDS 21695 | -5/Hub_04(d) | Found Prototype Device 21729 | -5/Hub_04(d) | Network Hub disabled 21765 | -5/Hub_04(d) | Discovered exit to Factory (range 4) 21801 | -5/Hub_04(d) | Entered Factory 21801 | -4/Factory | Evolved 2 slots: Propulsion x1, Utility x1 21801 | -4/Factory | Identified Exp. EM Shield 22051 | -4/Factory | First assault squad dispatched 22224 | -4/Factory | System corruption reached 10% 22333 | -4/Factory | Core integrity fell below 50% 22334 | -4/Factory | Destroyed 7 combat bots 22336 | -4/Factory | Released all parts (4) 22369 | -4/Factory | Lost 23 parts (3p5n9u6w) 22441 | -4/Factory | Identified exit to Upper Caves 22552 | -4/Factory | Core integrity fell below 20% 22555 | -4/Factory | Spotted B-86 Titan 22576 | -4/Factory | Entered Upper Caves 22586 | -4/Upper Caves | Build established: Mutant 22589 | -4/Upper Caves | Lost 8 parts (1p5n1u1w) 22604 | -4/Upper Caves | Destroyed by H-77 Assassin with Coil Gun Last Messages --------------- 22562_ System corrupted: Matter fused (-6). 22562_ Acquired Unknown Hover Unit. 22562_ Identified Imp. Gyrokinetic Inverter. 22564_ Slug penetrates Wall. 22565_ K-01 Serf collects debris. 22565_ R-10 Processor collects Lgt. Nuclear Core. 22570_ Acquired Neutron Cannon. LOCATION=UPPER CAVES GOAL=ESCAPE 22577_ 44-S1J(k) breaks down the debris. 22577_ ON-82H(k) breaks down the debris. 22577_ Slug penetrates 7C-V4A(k). 22577_ 7C-V4A(k) destroyed. 22577_ Slug penetrates Wall. 22590_ C-30 ARC bursts open, deploying its payload. 22590_ S-27 Virus unfolds itself. 22600_ System corrupted: Gyrokinetic Inverter rejected. 22600_ Acquired Gyrokinetic Inverter. 22602_ Backup Power I destroyed. 22604_ Penetrated by Slug. Map ----- +----------------------------------------------------+ | ?????????????????????????????????????????????????? | | ?????????????????????????????????????????????????? | | ?????????????????????????????????????????????????? | | ?????????????????????????????????????????????????? | | ?????????????????????????????????????????????????? | | ?????????????????????????????????????????????????? | | ?????????????????????????????????????????????????? | | ?????????????????????????????????????????????????? | | ?????????????????????????????????????????????????? | | ?????????????????????????????????????????????????? | | ?????????????????????????????????????????????????? | | ?????????????????????????????????????????????????? | | ?????????????????????????????????????????????????? | | ?????????????????????????????????????????????????? | | ?????????????????????????????????????????????????? | | ?????????????????????????????????????????????????? | | ?????????????????????????????################????? | | ?????????????????????????????# ## ?????? | | ?????????????????????????????# ???????? | | ?????????????????????????##### #?????????? | | ????????????????????????## ## #?????????? | | ???????????????????????## #?###?????? | | ???????????????????????# ### #?????? | | ???????????????????????# k##### ###???? | | ???????????????????????# ##??? | | ???????????????????????# @ #??? | | ???????????????????????#k ###### ##?? | | ???????????????????????### #????## ##? | | ?????????????????????????# #?????# ### ## | | ????????????????????????? ?????# ##### | | ????????????????????????? ?????## ##???# """ | | ????????????????????????? ?????####????# """"" | | ????????????????????????? h ?????????????# """"" | | ????????????????????????## #??##???????## " " | | ?????????????????????????# #??# ###### """ """ | | ?????????????????????????? #??# """ """ | | ?????????????????????????? ##??# % """ """ | | ?????????????????????????? ### ###### | | ?????????????????????????? ??## ???????# | | ?????????????????????????? ???# ??????????#### | | ?????????????????????????? ??????????????????#### | | ?????????????????????????? ?????????????????????## | | ?????????????????????????????????????????????????? | | ?????????????????????????????????????????????????? | | ?????????????????????????????????????????????????? | | ?????????????????????????????????????????????????? | | ?????????????????????????????????????????????????? | | ?????????????????????????????????????????????????? | | ?????????????????????????????????????????????????? | | ?????????????????????????????????????????????????? | +----------------------------------------------------+ Best States ------------- Heat Dissipation 116 Energy Generation 45 Energy Capacity 600 Matter Stores 330 Matter Capacity 500 Sight Range 16 Robot Scan Range 16 Terrain Scan Range 16 Terrain Scan Density 10 Jamming Range 12 Armor Coverage 1600 Resistance: TH 15 Resistance: EM 90 Propulsion Shielding 66 Phase Shifting 20 Evasion (%) 63 Targeting Accuracy 32 Core Analysis 8 Recoil Reduction 6 Item Schematics ----------------- Imp. Trap Scanner | -7/Zion | Archive Imp. Titanium Leg | -7/Zion | Archive Hvy. Missile Launcher | -7/Zion | Archive Focal Shield | -7/Zion | Archive Adv. Cooling System | -7/Zion | Archive Hvy. Laser | -7/Zion | Archive Remote Shield | -7/Zion | Archive Corruption Screen | -7/Zion | Archive Angular Momentum Engine | -7/Zion | Archive Gauss Cannon | -7/Zion | Archive Imp. Deuterium Engine | -7/Zion | Archive Greatsword | -7/Zion | Archive Adv. Shield Generator | -7/Zion | Archive Combat Drone Bay | -6/Data Miner | Free Cld. Gravmag System | -6/Data Miner | Free Lgt. Regenerative Plating | -6/Data Miner | Free Hvy. Proton Cannon | -6/Data Miner | Free Adv. VSS Leg | -6/Data Miner | Free Imp. Energy Well | -6/Data Miner | Free Imp. Cloaking Device | -6/Data Miner | Free Micro-nuke Launcher | -6/Data Miner | Free Adv. Cryofiber Web | -6/Data Miner | Free Adv. Recalibrator | -6/Data Miner | Free Robot Schematics ------------------ T-07 Excavator | -7/Zion | Archive S-27 Virus | -7/Zion | Archive H-77 Assassin | -7/Zion | Archive B-60 Warrior | -6/Data Miner | Free R-10 Processor | -6/Data Miner | Free G-50 Soldier | -6/Data Miner | Free A-15 Conveyor | -6/Data Miner | Free Fabricated ------------ Nothing Repaired ---------- Nothing Studied --------- Lgt. Treads | -8/Materials | Hacked Hvy. Plasma Cannon | -4/Factory | Hacked Alien Tech Used ----------------- Core Expander Achievements -------------- None Challenges ------------ None Game ------ Seed InertialStructuralRigger Manual? 0 Play Time 02:18:44 Cumulative 387.2 hours Start 2026.02.21 @ 10:44:52 End 2026.02.22 @ 07:29:17 Sessions 10 Manual Loads 0 Difficulty Rogue Special Mode None Game No. 149 Rogue 148 Adventurer 1 Explorer 0 Win Type - Total 15 Types 6/2/2/0/1/0/2/1/0/1 Lore% 63 Gallery% 80 Achievement% 70 Wizard Run 0 Options --------- Layout 0 ASCII 0 Keyboard 0 Movement Arrows Keybinds 0 Fullscreen 2 Font 24/Smallcaps Map View 76x50 Zoom Use 0% Tactical HUD 1 Map Filters NONE Filters NONE Steam 1 RUN: 1c2a2b03-2e36-4271-bab3-9f813e28f76a